fUST/lending_fUST_20250221
["ID","MTS","AMOUNT","RATE_DAILY","PERIOD"]
[353831575,1740083445930,-500.0,0.00013863,2]
[353831576,1740083445939,-500.0,0.00013863,2]
[353831577,1740083445948,-500.0,0.00013863,2]
[353831578,1740083445958,-500.0,0.00013863,2]
[353831579,1740083445967,-1398.84,0.00013863,2]
[353831580,1740083445977,-500.0,0.00013863,2]
[353831581,1740083445987,-500.0,0.00013863,2]
[353831582,1740083445996,-730.21,0.00013863,2]
[353831583,1740083446006,-500.0,0.00013863,2]
[353831584,1740083446016,-796.15,0.00013863,2]
[353831585,1740083446025,-549.32,0.00013863,2]
[353831586,1740083446039,-908.79,0.00013863,2]
[353831587,1740083446048,-14912.38,0.00013863,2]
[353831588,1740083446058,-500.0,0.00013863,2]
[353831589,1740083446067,-500.0,0.00013863,2]
[353831590,1740083446077,-500.0,0.00013863,2]
[353831591,1740083446086,-500.0,0.00013863,2]
[353831592,1740083446096,-2801.65,0.00013863,2]
[353831593,1740083446106,-461.56442783,0.00013863,2]
[353831594,1740083446116,-500.0,0.00013863,2]
[353831595,1740083446125,-500.0,0.00013863,2]
[353831596,1740083446135,-1082.16,0.00013863,2]
[353831597,1740083446144,-42237.27,0.00013863,2]
[353831598,1740083446154,-1101.55,0.00013863,2]
[353831599,1740083446164,-1138.49,0.00013863,2]
[353831600,1740083446174,-2990.03,0.00013863,2]
[353831601,1740083446183,-2277.37,0.00013863,2]
[353831602,1740083446193,-500.0,0.00013863,2]
[353831603,1740083446203,-6484.48,0.00013863,2]
[353831604,1740083446213,-500.0,0.00013863,2]
[353831605,1740083446223,-500.0,0.00013863,2]
[353831606,1740083446232,-500.0,0.00013863,2]
[353831607,1740083446242,-500.0,0.00013863,2]
[353831608,1740083446251,-1166.9,0.00013863,2]
[353831609,1740083446261,-500.0,0.00013863,2]
[353831610,1740083446270,-500.0,0.00013863,2]
[353831611,1740083446279,-500.0,0.00013863,2]
[353831612,1740083446288,-500.0,0.00013863,2]
[353831613,1740083446298,-500.0,0.00013863,2]
[353831614,1740083446311,-500.0,0.00013863,2]
[353831615,1740083446320,-500.0,0.00013863,2]
[353831616,1740083446330,-500.0,0.00013863,2]
[353831617,1740083446340,-722.07,0.00013863,2]
[353831618,1740083446350,-514.06,0.00013863,2]
[353831619,1740083446360,-3817.32,0.00013863,2]
[353831620,1740083446370,-500.0,0.00013863,2]
[353831621,1740083446380,-500.0,0.00013863,2]
[353831622,1740083446390,-500.0,0.00013863,2]
[353831624,1740083446399,-2046.35,0.00013863,2]
[353831626,1740083446409,-500.0,0.00013863,2]
[353831627,1740083446419,-500.0,0.00013863,2]
[353831629,1740083446428,-3368.27,0.00013863,2]
[353831630,1740083446437,-500.0,0.00013863,2]
[353831631,1740083446446,-560.15,0.00013863,2]
[353831632,1740083446455,-500.0,0.00013863,2]
[353831633,1740083446464,-998.57,0.00013863,2]
[353831634,1740083446474,-1492.11,0.00013863,2]
[353831635,1740083446488,-2086.24,0.00013863,2]
[353831636,1740083446498,-505.32613227,0.00013863,2]
[353831637,1740083446507,-500.0,0.00013863,2]
[353831638,1740083446518,-500.0,0.00013863,2]
[353831639,1740083446527,-500.0,0.00013863,2]
[353831640,1740083446537,-500.0,0.00013863,2]
[353831641,1740083446546,-1276.48,0.00013863,2]
[353831642,1740083446557,-500.0,0.00013863,2]
[353831643,1740083446567,-500.0,0.00013863,2]
[353831644,1740083446576,-500.0,0.00013863,2]
[353831645,1740083446586,-500.0,0.00013863,2]
[353831646,1740083446594,-500.0,0.00013863,2]
[353831647,1740083446603,-500.0,0.00013863,2]
[353831648,1740083446612,-500.0,0.00013863,2]
[353831649,1740083446622,-500.0,0.00013863,2]
[353831650,1740083446632,-1532.03,0.00013863,2]
[353831651,1740083446641,-500.0,0.00013863,2]
[353831652,1740083446650,-500.0,0.00013863,2]
[353831653,1740083446659,-523.05,0.00013863,2]
[353831654,1740083446668,-500.0,0.00013863,2]
[353831655,1740083446767,-500.0,0.00013863,2]
[353831656,1740083446778,-500.0,0.00013863,2]
[353831657,1740083446788,-500.0,0.00013863,2]
[353831658,1740083446797,-500.0,0.00013863,2]
[353831659,1740083446808,-500.0,0.00013863,2]
[353831660,1740083446818,-500.0,0.00013863,2]
[353831661,1740083446827,-500.0,0.00013863,2]
[353831662,1740083446836,-500.0,0.00013863,2]
[353831663,1740083446846,-548.69,0.00013863,2]
[353831664,1740083446855,-5562.85,0.00013863,2]
[353831665,1740083446865,-730.64,0.00013863,2]
[353831666,1740083446875,-500.0,0.00013863,2]
[353831667,1740083446884,-1266.77,0.00013863,2]
[353831668,1740083446895,-500.0,0.00013863,2]
[353831669,1740083446906,-500.0,0.00013863,2]
[353831670,1740083446920,-1810.56,0.00013863,2]
[353831671,1740083446929,-500.0,0.00013863,2]
[353831672,1740083446938,-6428.59,0.00013863,2]
[353831673,1740083446947,-500.0,0.00013863,2]
[353831674,1740083446956,-500.0,0.00013863,2]
[353831675,1740083446965,-500.0,0.00013863,2]
[353831676,1740083446975,-500.0,0.00013863,2]
[353831677,1740083446984,-599.39,0.00013863,2]
[353831678,1740083446993,-500.00569627,0.00013863,2]
[353831679,1740083447002,-13589.0,0.00013863,2]
[353831680,1740083447011,-500.0,0.00013863,2]
[353831681,1740083447021,-1627.47,0.00013863,2]
[353831682,1740083447034,-500.0,0.00013863,2]
[353831683,1740083447043,-500.0,0.00013863,2]
[353831684,1740083447053,-399.56140855,0.00013927,2]
[353831685,1740083447063,-399.56140855,0.00013927,2]
[353831686,1740083447073,-399.56140855,0.00013927,2]
[353831687,1740083447083,-399.56140855,0.00013927,2]
[353831688,1740083447093,-399.56140855,0.00013927,2]
[353831689,1740083447103,-399.56140855,0.00013927,2]
[353831690,1740083447113,-399.56140855,0.00013927,2]
[353831691,1740083447123,-399.56140855,0.00013927,2]
[353831692,1740083447132,-399.56140855,0.00013927,2]
[353831693,1740083447142,-399.56140855,0.00013927,2]
[353831694,1740083447151,-399.56140855,0.00013927,2]
[353831695,1740083447160,-399.56140855,0.00013927,2]
[353831696,1740083447169,-399.56140855,0.00013927,2]
[353831697,1740083447178,-399.56140855,0.00013927,2]
[353831698,1740083447187,-399.56140855,0.00013927,2]
[353831699,1740083447197,-399.56140855,0.00013927,2]
[353831700,1740083447206,-399.56140855,0.00013927,2]
[353831701,1740083447215,-399.56140855,0.00013927,2]
[353831702,1740083447225,-399.56140855,0.00013927,2]
[353831703,1740083447234,-399.56,0.00013927,2]
[353831704,1740083447244,-501.26296343,0.00013945,2]
[353831705,1740083447254,-500.0,0.00013945,2]
[353831706,1740083447264,-505.99578932,0.00013945,2]
[353831707,1740083447274,-500.0,0.00013945,2]
[353831708,1740083447284,-417.18870941,0.00013945,2]
[353831709,1740083447294,-500.0,0.00013945,2]
[353831710,1740083447304,-500.0,0.00013945,2]
[353831711,1740083447313,-500.0,0.00013945,2]
[353831712,1740083447322,-500.0,0.00013945,2]
[353831713,1740083447331,-500.0,0.00013945,2]
[353831714,1740083447340,-500.0,0.00013945,2]
[353831715,1740083447349,-500.0,0.00013945,2]
[353831716,1740083447359,-500.0,0.00013945,2]
[353831717,1740083447368,-500.0,0.00013945,2]
[353831718,1740083447377,-500.0,0.00013945,2]
[353831719,1740083447388,-500.0,0.00013945,2]
[353831720,1740083447397,-500.0,0.00013945,2]
[353831721,1740083447406,-500.0,0.00013945,2]
[353831722,1740083447416,-500.0,0.00013945,2]
[353831723,1740083447425,-500.0,0.00013945,2]
[353831724,1740083447435,-500.0,0.00013945,2]
[353831725,1740083447445,-507.82152645,0.00013945,2]
[353831726,1740083447454,-512.72007622,0.00013945,2]
[353831727,1740083447464,-500.0,0.00013945,2]
[353831728,1740083447473,-500.0,0.00013945,2]
[353831729,1740083447482,-500.0,0.00013945,2]
[353831730,1740083447492,-500.0,0.00013945,2]
[353831731,1740083447502,-500.0,0.00013945,2]
[353831732,1740083447512,-500.0,0.00013945,2]
[353831733,1740083447521,-500.0,0.00013945,2]
[353831734,1740083447530,-500.0,0.00013945,2]
[353831735,1740083447540,-500.0,0.00013945,2]
[353831736,1740083447550,-500.0,0.00013945,2]
[353831737,1740083447560,-500.0,0.00013945,2]
[353831738,1740083447569,-500.0,0.00013945,2]
[353831739,1740083447580,-500.0,0.00013945,2]
[353831740,1740083447589,-500.0,0.00013945,2]
[353831741,1740083447598,-1344.33,0.00013945,2]
[353831742,1740083447608,-504.04609788,0.00013945,2]
[353831743,1740083447618,-500.0,0.00013945,2]
[353831744,1740083447628,-690.08,0.00013945,2]
[353831745,1740083447638,-500.0,0.00013945,2]
[353831746,1740083447648,-500.0,0.00013945,2]
[353831747,1740083447658,-841.22,0.00013945,2]
[353831748,1740083447668,-500.0,0.00013945,2]
[353831749,1740083447679,-626.22,0.00013945,2]
[353831750,1740083447690,-500.0,0.00013945,2]
[353831751,1740083447700,-500.0,0.00013945,2]
[353831752,1740083447710,-500.0,0.00013945,2]
[353831753,1740083447720,-500.0,0.00013945,2]
[353831754,1740083447730,-500.0,0.00013945,2]
[353831755,1740083447740,-567.91,0.00013945,2]
[353831756,1740083447750,-501.8015462,0.00013945,2]
[353831757,1740083447759,-500.0,0.00013945,2]
[353831758,1740083447769,-500.0,0.00013945,2]
[353831759,1740083447778,-500.0,0.00013945,2]
[353831760,1740083447788,-500.0,0.00013945,2]
[353831761,1740083447797,-500.0,0.00013945,2]
[353831762,1740083447808,-500.0,0.00013945,2]
[353831763,1740083447817,-510.4,0.00013945,2]
[353831764,1740083447825,-969.2,0.00013945,2]
[353831765,1740083447835,-622.21,0.00013945,2]
[353831766,1740083447845,-500.0,0.00013945,2]
[353831767,1740083447854,-500.0,0.00013945,2]
[353831768,1740083447863,-500.0,0.00013945,2]
[353831769,1740083447873,-500.0,0.00013945,2]
[353831770,1740083447882,-541.46,0.00013945,2]
[353831771,1740083447892,-500.0,0.00013945,2]
[353831772,1740083447902,-500.0,0.00013945,2]
[353831773,1740083447912,-500.0,0.00013945,2]
[353831774,1740083447921,-624.73,0.00013945,2]
[353831775,1740083447931,-500.0,0.00013945,2]
[353831776,1740083447941,-500.0,0.00013945,2]
[353831777,1740083447951,-681.71,0.00013945,2]
[353831778,1740083447961,-1160.78,0.00013945,2]
[353831779,1740083447971,-500.0,0.00013945,2]
[353831780,1740083447981,-500.0,0.00013945,2]
[353831781,1740083447991,-500.0,0.00013945,2]
[353831782,1740083448000,-565.57,0.00013945,2]
[353831783,1740083448009,-500.0,0.00013945,2]
[353831784,1740083448018,-500.0,0.00013945,2]
[353831785,1740083448027,-500.0,0.00013945,2]
[353831786,1740083448041,-500.0,0.00013945,2]
[353831787,1740083448050,-500.0,0.00013945,2]
[353831788,1740083448062,-508.08,0.00013945,2]
[353831789,1740083448072,-973.34,0.00013945,2]
[353831790,1740083448083,-500.0,0.00013945,2]
[353831791,1740083448092,-500.0,0.00013945,2]
[353831792,1740083448101,-500.0,0.00013945,2]
[353831793,1740083448111,-472.30882671,0.00013945,2]
[353831794,1740083448121,-500.0,0.00013945,2]
[353831795,1740083448131,-500.0,0.00013945,2]
[353831796,1740083448141,-500.0,0.00013945,2]
[353831797,1740083448151,-500.0,0.00013945,2]
[353831798,1740083448160,-476.16308693,0.00013945,2]
[353831799,1740083448170,-735.52,0.00013945,2]
[353831800,1740083448180,-500.0,0.00013945,2]
[353831801,1740083448190,-502.24763337,0.00013945,2]
[353831802,1740083448200,-500.0,0.00013945,2]
[353831803,1740083448210,-500.0,0.00013945,2]
[353831804,1740083448219,-401.35251584,0.00013945,2]
[353831805,1740083448229,-500.0,0.00013945,2]
[353831806,1740083448240,-500.0,0.00013945,2]
[353831807,1740083448249,-578.73,0.00013945,2]
[353831808,1740083448259,-631.42,0.00013945,2]
[353831809,1740083448268,-500.0,0.00013945,2]
[353831810,1740083448278,-500.0,0.00013945,2]
[353831811,1740083448288,-500.0,0.00013945,2]
[353831812,1740083448297,-500.0,0.00013945,2]
[353831813,1740083448310,-500.0,0.00013945,2]
[353831814,1740083448319,-630.95,0.00013945,2]
[353831815,1740083448329,-500.0,0.00013945,2]
[353831816,1740083448338,-500.0,0.00013945,2]
[353831817,1740083448348,-500.0,0.00013945,2]
[353831818,1740083448358,-500.0,0.00013945,2]
[353831819,1740083448368,-500.0,0.00013945,2]
[353831820,1740083448377,-500.0,0.00013945,2]
[353831821,1740083448387,-500.0,0.00013945,2]
[353831822,1740083448398,-534.77,0.00013945,2]
[353831823,1740083448407,-500.0,0.00013945,2]
[353831824,1740083448417,-500.0,0.00013945,2]
[353831825,1740083448427,-662.16,0.00013945,2]
[353831826,1740083448436,-500.0,0.00013945,2]
[353831827,1740083448446,-3140.73,0.00013945,2]
[353831828,1740083448456,-404.48,0.00013945,2]
[353831829,1740083448466,-615.68,0.00013945,2]
[353831830,1740083448477,-547.69,0.00013945,2]
[353831831,1740083448487,-1777.49,0.00013945,2]
[353831832,1740083448497,-500.0,0.00013945,2]
[353831833,1740083448507,-500.0,0.00013945,2]
[353831834,1740083448516,-500.0,0.00013945,2]
[353831835,1740083448526,-500.0,0.00013945,2]
[353831836,1740083448536,-515.6339278,0.00013945,2]
[353831837,1740083448545,-500.0,0.00013945,2]
[353831838,1740083448557,-500.0,0.00013945,2]
[353831839,1740083448567,-1398.84,0.00013945,2]
[353831840,1740083448576,-500.0,0.00013945,2]
[353831841,1740083448586,-503.01930446,0.00013945,2]
[353831842,1740083448595,-730.21,0.00013945,2]
[353831843,1740083448603,-500.0,0.00013945,2]
[353831844,1740083448613,-796.15,0.00013945,2]
[353831845,1740083448623,-549.32,0.00013945,2]
[353831846,1740083448634,-908.79,0.00013945,2]
[353831847,1740083448644,-14912.38,0.00013945,2]
[353831848,1740083448653,-500.0,0.00013945,2]
[353831849,1740083448662,-500.0,0.00013945,2]
[353831850,1740083448671,-500.0,0.00013945,2]
[353831851,1740083448681,-2801.65,0.00013945,2]
[353831852,1740083448691,-500.0,0.00013945,2]
[353831853,1740083448700,-500.0,0.00013945,2]
[353831854,1740083448710,-1082.16,0.00013945,2]
[353831855,1740083448720,-42237.27,0.00013945,2]
[353831856,1740083448729,-1101.55,0.00013945,2]
[353831857,1740083448739,-1138.49,0.00013945,2]
[353831858,1740083448748,-2990.03,0.00013945,2]
[353831859,1740083448854,-2277.37,0.00013945,2]
[353831860,1740083448864,-500.0,0.00013945,2]
[353831861,1740083448874,-6484.48,0.00013945,2]
[353831862,1740083448884,-500.0,0.00013945,2]
[353831863,1740083448895,-500.0,0.00013945,2]
[353831864,1740083448915,-500.0,0.00013945,2]
[353831865,1740083448929,-502.21326011,0.00013945,2]
[353831866,1740083448941,-1166.9,0.00013945,2]
[353831867,1740083448952,-500.0,0.00013945,2]
[353831868,1740083448963,-500.0,0.00013945,2]
[353831869,1740083448973,-500.0,0.00013945,2]
[353831870,1740083448983,-500.0,0.00013945,2]
[353831871,1740083448994,-500.0,0.00013945,2]
[353831872,1740083449004,-500.0,0.00013945,2]
[353831873,1740083449015,-500.0,0.00013945,2]
[353831874,1740083449025,-500.0,0.00013945,2]
[353831875,1740083449037,-722.07,0.00013945,2]
[353831876,1740083449048,-514.06,0.00013945,2]
[353831877,1740083449062,-3817.32,0.00013945,2]
[353831878,1740083449072,-500.0,0.00013945,2]
[353831879,1740083449083,-501.82936904,0.00013945,2]
[353831880,1740083449094,-2046.35,0.00013945,2]
[353831881,1740083449104,-500.0,0.00013945,2]
[353831882,1740083449116,-517.69,0.00013945,2]
[353831883,1740083449127,-3368.27,0.00013945,2]
[353831884,1740083449137,-500.0,0.00013945,2]
[353831885,1740083449147,-560.15,0.00013945,2]
[353831886,1740083449157,-500.0,0.00013945,2]
[353831887,1740083449167,-998.57,0.00013945,2]
[353831888,1740083449177,-1492.11,0.00013945,2]
[353831889,1740083449187,-2086.24,0.00013945,2]
[353831890,1740083449197,-500.0,0.00013945,2]
[353831891,1740083449208,-500.0,0.00013945,2]
[353831892,1740083449219,-500.0,0.00013945,2]
[353831893,1740083449230,-1276.48,0.00013945,2]
[353831894,1740083449240,-500.0,0.00013945,2]
[353831895,1740083449250,-500.0,0.00013945,2]
[353831896,1740083449261,-500.0,0.00013945,2]
[353831897,1740083449272,-500.0,0.00013945,2]
[353831898,1740083449282,-500.0,0.00013945,2]
[353831899,1740083449293,-1532.03,0.00013945,2]
[353831900,1740083449303,-500.0,0.00013945,2]
[353831901,1740083449316,-211.09352973,0.00013945,2]
[353831902,1740083449326,-523.05,0.00013945,2]
[353831903,1740083449336,-500.0,0.00013945,2]
[353831904,1740083449346,-500.0,0.00013945,2]
[353831905,1740083449356,-500.0,0.00013945,2]
[353831906,1740083449365,-500.0,0.00013945,2]
[353831907,1740083449375,-500.0,0.00013945,2]
[353831908,1740083449386,-500.0,0.00013945,2]
[353831909,1740083449396,-500.0,0.00013945,2]
[353831910,1740083449407,-500.0,0.00013945,2]
[353831911,1740083449417,-548.69,0.00013945,2]
[353831912,1740083449427,-730.64,0.00013945,2]
[353831913,1740083449437,-5562.85,0.00013945,2]
[353831914,1740083449447,-500.0,0.00013945,2]
[353831915,1740083449457,-1266.77,0.00013945,2]
[353831916,1740083449467,-378.3472983,0.00013945,2]
[353831917,1740083449477,-1810.56,0.00013945,2]
[353831918,1740083449487,-500.0,0.00013945,2]
[353831919,1740083449497,-6428.59,0.00013945,2]
[353831920,1740083449507,-500.0,0.00013945,2]
[353831921,1740083449516,-569.05175497,0.00013945,2]
[353831922,1740083449526,-500.0,0.00013945,2]
[353831923,1740083449536,-500.0,0.00013945,2]
[353831924,1740083449546,-599.39,0.00013945,2]
[353831925,1740083449557,-13589.0,0.00013945,2]
[353831926,1740083449567,-500.0,0.00013945,2]
[353831927,1740083449576,-1627.47,0.00013945,2]
[353831928,1740083449586,-500.0,0.00013945,2]
[353831929,1740083449596,-500.0,0.00013945,2]
[353831930,1740083449605,-420.0,0.00013991,2]
[353831931,1740083449615,-7438.69753278,0.00014011,2]
[353831932,1740083449625,-500.0,0.00014027,2]
[353831933,1740083449634,-359.46110431,0.00014027,2]
[353831934,1740083449643,-442.95592162,0.00014027,2]
[353831935,1740083449653,-500.0,0.00014027,2]
[353831936,1740083449662,-500.0,0.00014027,2]
[353831937,1740083449671,-500.0,0.00014027,2]
[353831938,1740083449682,-277.82831252,0.00014027,2]
[353831939,1740083449691,-514.22389054,0.00014027,2]
[353831940,1740083449701,-500.0,0.00014027,2]
[353831941,1740083449710,-500.0,0.00014027,2]
[353831942,1740083449719,-500.0,0.00014027,2]
[353831943,1740083449729,-516.7648298,0.00014027,2]
[353831944,1740083449738,-500.0,0.00014027,2]
[353831945,1740083449747,-500.0,0.00014027,2]
[353831946,1740083449757,-500.0,0.00014027,2]
[353831947,1740083449767,-321.76369117,0.00014027,2]
[353831948,1740083449776,-500.0,0.00014027,2]
[353831949,1740083449786,-509.35448482,0.00014027,2]
[353831950,1740083449796,-500.0,0.00014027,2]
[353831951,1740083449807,-309.70583106,0.00014027,2]
[353831952,1740083449818,-500.0,0.00014027,2]
[353831953,1740083449827,-500.0,0.00014027,2]
[353831954,1740083449837,-500.0,0.00014027,2]
[353831955,1740083449847,-500.0,0.00014027,2]
[353831956,1740083449857,-507.41425606,0.00014027,2]
[353831957,1740083449867,-500.0,0.00014027,2]
[353831958,1740083449877,-500.0,0.00014027,2]
[353831959,1740083449887,-500.0,0.00014027,2]
[353831960,1740083449896,-500.0,0.00014027,2]
[353831961,1740083449906,-500.0,0.00014027,2]
[353831962,1740083449915,-500.0,0.00014027,2]
[353831963,1740083449925,-1344.33,0.00014027,2]
[353831964,1740083449935,-500.0,0.00014027,2]
[353831965,1740083449945,-690.08,0.00014027,2]
[353831966,1740083449955,-500.0,0.00014027,2]
[353831967,1740083449964,-500.0,0.00014027,2]
[353831968,1740083449974,-841.22,0.00014027,2]
[353831969,1740083449984,-500.0,0.00014027,2]
[353831970,1740083449994,-626.22,0.00014027,2]
[353831971,1740083450003,-500.0,0.00014027,2]
[353831972,1740083450014,-500.0,0.00014027,2]
[353831973,1740083450026,-500.0,0.00014027,2]
[353831974,1740083450038,-500.0,0.00014027,2]
[353831975,1740083450047,-500.0,0.00014027,2]
[353831976,1740083450058,-567.91,0.00014027,2]
[353831977,1740083450067,-500.0,0.00014027,2]
[353831978,1740083450077,-500.0,0.00014027,2]
[353831979,1740083450087,-500.0,0.00014027,2]
[353831980,1740083450096,-500.0,0.00014027,2]
[353831981,1740083450106,-500.0,0.00014027,2]
[353831982,1740083450118,-510.4,0.00014027,2]
[353831983,1740083450127,-969.2,0.00014027,2]
[353831984,1740083450137,-622.21,0.00014027,2]
[353831985,1740083450147,-523.95525576,0.00014027,2]
[353831986,1740083450157,-500.0,0.00014027,2]
[353831987,1740083450166,-500.0,0.00014027,2]
[353831988,1740083450175,-500.0,0.00014027,2]
[353831989,1740083450185,-541.46,0.00014027,2]
[353831990,1740083450195,-500.0,0.00014027,2]
[353831991,1740083450206,-393.19061892,0.00014027,2]
[353831992,1740083450215,-624.73,0.00014027,2]
[353831993,1740083450225,-500.0,0.00014027,2]
[353831994,1740083450235,-500.0,0.00014027,2]
[353831995,1740083450244,-681.71,0.00014027,2]
[353831996,1740083450255,-1160.78,0.00014027,2]
[353831997,1740083450265,-500.0,0.00014027,2]
[353831998,1740083450275,-299.97500029,0.00014027,2]
[353831999,1740083450284,-503.42881826,0.00014027,2]
[353832000,1740083450294,-565.57,0.00014027,2]
[353832001,1740083450304,-500.0,0.00014027,2]
[353832002,1740083450314,-500.0,0.00014027,2]
[353832003,1740083450324,-500.0,0.00014027,2]
[353832004,1740083450333,-500.0,0.00014027,2]
[353832005,1740083450343,-500.0,0.00014027,2]
[353832006,1740083450352,-508.08,0.00014027,2]
[353832007,1740083450362,-973.34,0.00014027,2]
[353832008,1740083450372,-500.0,0.00014027,2]
[353832009,1740083450382,-500.0,0.00014027,2]
[353832010,1740083450391,-500.0,0.00014027,2]
[353832011,1740083450401,-500.0,0.00014027,2]
[353832012,1740083450411,-500.0,0.00014027,2]
[353832013,1740083450421,-500.0,0.00014027,2]
[353832014,1740083450430,-735.52,0.00014027,2]
[353832015,1740083450440,-500.0,0.00014027,2]
[353832016,1740083450449,-500.0,0.00014027,2]
[353832017,1740083450459,-500.0,0.00014027,2]
[353832018,1740083450469,-500.0,0.00014027,2]
[353832019,1740083450478,-501.98306001,0.00014027,2]
[353832020,1740083450488,-578.73,0.00014027,2]
[353832021,1740083450498,-631.42,0.00014027,2]
[353832022,1740083450507,-480.6041164,0.00014027,2]
[353832023,1740083450516,-500.0,0.00014027,2]
[353832024,1740083450526,-500.0,0.00014027,2]
[353832025,1740083450535,-500.0,0.00014027,2]
[353832026,1740083450544,-500.0,0.00014027,2]
[353832027,1740083450554,-630.95,0.00014027,2]
[353832028,1740083450564,-500.0,0.00014027,2]
[353832029,1740083450574,-631.0206765,0.00014027,2]
[353832030,1740083450584,-500.0,0.00014027,2]
[353832031,1740083450594,-500.0,0.00014027,2]
[353832032,1740083450604,-500.0,0.00014027,2]
[353832033,1740083450614,-547.01087436,0.00014027,2]
[353832034,1740083450623,-534.77,0.00014027,2]
[353832035,1740083450633,-500.0,0.00014027,2]
[353832036,1740083450642,-500.0,0.00014027,2]
[353832037,1740083450652,-662.16,0.00014027,2]
[353832038,1740083450661,-500.0,0.00014027,2]
[353832039,1740083450671,-3140.73,0.00014027,2]
[353832040,1740083450680,-615.68,0.00014027,2]
[353832041,1740083450690,-547.69,0.00014027,2]
[353832042,1740083450700,-1777.49,0.00014027,2]
[353832043,1740083450710,-500.0,0.00014027,2]
[353832044,1740083450719,-500.0,0.00014027,2]
[353832045,1740083450728,-500.0,0.00014027,2]
[353832046,1740083450737,-500.0,0.00014027,2]
[353832047,1740083450828,-500.0,0.00014027,2]
[353832048,1740083450839,-1398.84,0.00014027,2]
[353832049,1740083450849,-500.0,0.00014027,2]
[353832050,1740083450858,-730.21,0.00014027,2]
[353832051,1740083450867,-500.0,0.00014027,2]
[353832052,1740083450876,-796.15,0.00014027,2]
[353832053,1740083450886,-908.79,0.00014027,2]
[353832054,1740083450895,-549.32,0.00014027,2]
[353832055,1740083450906,-14912.38,0.00014027,2]
[353832056,1740083450916,-500.0,0.00014027,2]
[353832057,1740083450926,-500.0,0.00014027,2]
[353832058,1740083450936,-2801.65,0.00014027,2]
[353832059,1740083450946,-500.0,0.00014027,2]
[353832060,1740083450956,-500.0,0.00014027,2]
[353832061,1740083450966,-1082.16,0.00014027,2]
[353832062,1740083450976,-42237.27,0.00014027,2]
[353832063,1740083450986,-1101.55,0.00014027,2]
[353832064,1740083450996,-1138.49,0.00014027,2]
[353832065,1740083451006,-2990.03,0.00014027,2]
[353832066,1740083451015,-2277.37,0.00014027,2]
[353832067,1740083451025,-500.0,0.00014027,2]
[353832068,1740083451037,-6484.48,0.00014027,2]
[353832069,1740083451047,-500.0,0.00014027,2]
[353832070,1740083451057,-500.0,0.00014027,2]
[353832071,1740083451066,-500.0,0.00014027,2]
[353832072,1740083451077,-1166.9,0.00014027,2]
[353832073,1740083451087,-500.0,0.00014027,2]
[353832074,1740083451095,-500.0,0.00014027,2]
[353832075,1740083451105,-633.67506021,0.00014027,2]
[353832076,1740083451116,-500.0,0.00014027,2]
[353832077,1740083451125,-500.0,0.00014027,2]